fUST/lending_fUST_20251001
["ID","MTS","AMOUNT","RATE_DAILY","PERIOD"]
[388683752,1759318245980,-1113.87,0.0002,2]
[388683755,1759318245989,-151.49104,0.0002,2]
[388683757,1759318246000,-599.23,0.0002,2]
[388683760,1759318246009,-500.0,0.0002,2]
[388683764,1759318246020,-1117.57,0.0002,2]
[388683767,1759318246030,-500.0,0.0002,2]
[388683770,1759318246039,-525.44,0.0002,2]
[388683772,1759318246048,-1240.3,0.0002,2]
[388683776,1759318246056,-2228.95,0.0002,2]
[388683778,1759318246066,-500.0,0.0002,2]
[388683780,1759318246075,-500.0,0.0002,2]
[388683782,1759318246085,-698.229858,0.0002,2]
[388683784,1759318246094,-698.229858,0.0002,2]
[388683786,1759318246103,-809.47,0.0002,2]
[388683787,1759318246112,-698.229858,0.0002,2]
[388683788,1759318246121,-916.97,0.0002,2]
[388683789,1759318246130,-698.229858,0.0002,2]
[388683790,1759318246138,-500.0,0.0002,2]
[388683791,1759318246147,-151.0,0.0002,2]
[388683792,1759318246156,-3019.53,0.0002,2]
[388683793,1759318246165,-500.0,0.0002,2]
[388683794,1759318246174,-1262.45,0.0002,2]
[388683795,1759318246183,-706.38,0.0002,2]
[388683796,1759318246193,-500.0,0.0002,2]
[388683797,1759318246203,-515.78,0.0002,2]
[388683798,1759318246212,-559.18,0.0002,2]
[388683799,1759318246221,-773.55,0.0002,2]
[388683800,1759318246230,-1651.83,0.0002,2]
[388683801,1759318246240,-4514.82,0.0002,2]
[388683802,1759318246249,-528.18657132,0.0002,2]
[388683803,1759318246258,-511.87,0.0002,2]
[388683804,1759318246267,-983.43,0.0002,2]
[388683805,1759318246276,-1490.55,0.0002,2]
[388683806,1759318246285,-602.8,0.0002,2]
[388683807,1759318246294,-1294.55,0.0002,2]
[388683808,1759318246305,-723.5,0.0002,2]
[388683809,1759318246314,-1566.64,0.0002,2]
[388683810,1759318246324,-1572.27,0.0002,2]
[388683811,1759318246334,-1420.96,0.0002,2]
[388683812,1759318246344,-1058.94,0.0002,2]
[388683813,1759318246353,-2258.76,0.0002,2]
[388683814,1759318246362,-151.0,0.0002,2]
[388683815,1759318246371,-500.0,0.0002,2]
[388683816,1759318246380,-151.0,0.0002,2]
[388683817,1759318246389,-2521.59,0.0002,2]
[388683818,1759318246398,-151.0,0.0002,2]
[388683819,1759318246408,-2326.44,0.0002,2]
[388683820,1759318246417,-1000.0,0.00020021,2]
[388683821,1759318246426,-1000.0,0.00020021,2]
[388683823,1759318246435,-1000.0,0.00020021,2]
[388683825,1759318246445,-1000.0,0.00020021,2]
[388683827,1759318246454,-1000.0,0.00020021,2]
[388683828,1759318246463,-1000.0,0.00020021,2]
[388683830,1759318246473,-1000.0,0.00020021,2]
[388683832,1759318246484,-1000.0,0.00020021,2]
[388683834,1759318246493,-210.00958374,0.00020037,2]
[388683836,1759318246502,-180.085758,0.00020167,3]
[388683838,1759318246512,-10000.0,0.00020173,2]
[388683840,1759318246521,-676.36,0.00020273,2]
[388683842,1759318246531,-500.0,0.00020273,2]
[388683844,1759318246540,-500.0,0.00020273,2]
[388683846,1759318246549,-500.0,0.00020273,2]
[388683847,1759318246559,-500.0,0.00020273,2]
[388683849,1759318246569,-500.0,0.00020273,2]
[388683851,1759318246578,-151.0,0.00020273,2]
[388683853,1759318246588,-500.0,0.00020273,2]
[388683855,1759318246597,-500.0,0.00020273,2]
[388683857,1759318246607,-500.0,0.00020273,2]
[388683859,1759318246620,-500.0,0.00020273,2]
[388683861,1759318246630,-500.0,0.00020273,2]
[388683863,1759318246639,-500.0,0.00020273,2]
[388683865,1759318246648,-500.0,0.00020273,2]
[388683867,1759318246658,-500.0,0.00020273,2]
[388683869,1759318246668,-704.23,0.00020273,2]
[388683871,1759318246677,-500.0,0.00020273,2]
[388683873,1759318246687,-500.0,0.00020273,2]
[388683875,1759318246696,-645.44,0.00020273,2]
[388683876,1759318246705,-500.0,0.00020273,2]
[388683878,1759318246714,-500.0,0.00020273,2]
[388683880,1759318246724,-591.33,0.00020273,2]
[388683882,1759318246733,-500.0,0.00020273,2]
[388683884,1759318246742,-500.0,0.00020273,2]
[388683886,1759318246751,-672.16,0.00020273,2]
[388683888,1759318246762,-567.39,0.00020273,2]
[388683890,1759318246772,-1669.71,0.00020273,2]
[388683892,1759318246781,-523.59,0.00020273,2]
[388683894,1759318246791,-500.0,0.00020273,2]
[388683896,1759318246801,-662.22,0.00020273,2]
[388683898,1759318246810,-500.0,0.00020273,2]
[388683900,1759318246819,-500.0,0.00020273,2]
[388683902,1759318246829,-619.42,0.00020273,2]
[388683904,1759318246841,-988.56,0.00020273,2]
[388683906,1759318246851,-669.85,0.00020273,2]
[388683907,1759318246860,-614.52,0.00020273,2]
[388683909,1759318246871,-500.0,0.00020273,2]
[388683911,1759318246880,-1684.4,0.00020273,2]
[388683913,1759318246890,-980.68,0.00020273,2]
[388683915,1759318246900,-500.0,0.00020273,2]
[388683917,1759318246909,-620.33,0.00020273,2]
[388683919,1759318246918,-603.46,0.00020273,2]
[388683921,1759318246928,-801.96,0.00020273,2]
[388683923,1759318246937,-859.92,0.00020273,2]
[388683925,1759318246947,-500.0,0.00020273,2]
[388683927,1759318246956,-589.16543211,0.00020273,2]
[388683929,1759318246965,-2029.25,0.00020273,2]
[388683931,1759318246975,-907.05,0.00020273,2]
[388683933,1759318246984,-500.0,0.00020273,2]
[388683935,1759318246994,-1464.95,0.00020273,2]
[388683937,1759318247003,-728.64,0.00020273,2]
[388683939,1759318247013,-973.33,0.00020273,2]
[388683941,1759318247022,-500.0,0.00020273,2]
[388683943,1759318247032,-500.0,0.00020273,2]
[388683945,1759318247041,-500.0,0.00020273,2]
[388683947,1759318247051,-526.17,0.00020273,2]
[388683949,1759318247059,-500.0,0.00020273,2]
[388683951,1759318247069,-552.19,0.00020273,2]
[388683953,1759318247079,-695.19,0.00020273,2]
[388683955,1759318247088,-500.0,0.00020273,2]
[388683957,1759318247097,-527.73,0.00020273,2]
[388683959,1759318247107,-3054.62,0.00020273,2]
[388683961,1759318247116,-151.0,0.00020273,2]
[388683963,1759318247126,-1313.94,0.00020273,2]
[388683965,1759318247135,-651.89,0.00020273,2]
[388683967,1759318247145,-151.0,0.00020273,2]
[388683969,1759318247154,-580.86,0.00020273,2]
[388683970,1759318247164,-500.0,0.00020273,2]
[388683972,1759318247173,-500.0,0.00020273,2]
[388683974,1759318247183,-500.0,0.00020273,2]
[388683976,1759318247192,-500.0,0.00020273,2]
[388683978,1759318247201,-707.51,0.00020273,2]
[388683980,1759318247210,-500.0,0.00020273,2]
[388683982,1759318247221,-500.0,0.00020273,2]
[388683985,1759318247230,-612.1,0.00020273,2]
[388683986,1759318247239,-500.0,0.00020273,2]
[388683988,1759318247248,-500.0,0.00020273,2]
[388683990,1759318247257,-500.0,0.00020273,2]
[388683992,1759318247266,-500.0,0.00020273,2]
[388683994,1759318247275,-7937.12,0.00020273,2]
[388683996,1759318247285,-1388.47,0.00020273,2]
[388683998,1759318247294,-500.0,0.00020273,2]
[388684000,1759318247304,-1282.59,0.00020273,2]
[388684002,1759318247313,-500.0,0.00020273,2]
[388684004,1759318247323,-500.0,0.00020273,2]
[388684006,1759318247332,-2401.16,0.00020273,2]
[388684008,1759318247342,-735.44,0.00020273,2]
[388684010,1759318247351,-528.59,0.00020273,2]
[388684012,1759318247361,-637.19,0.00020273,2]
[388684014,1759318247370,-927.17,0.00020273,2]
[388684016,1759318247379,-613.98,0.00020273,2]
[388684018,1759318247388,-1079.17,0.00020273,2]
[388684020,1759318247398,-1330.71,0.00020273,2]
[388684022,1759318247407,-500.0,0.00020273,2]
[388684024,1759318247415,-1079.99,0.00020273,2]
[388684026,1759318247426,-551.55376209,0.00020273,2]
[388684028,1759318247435,-981.13,0.00020273,2]
[388684030,1759318247449,-3125.94,0.00020273,2]
[388684032,1759318247458,-1202.54,0.00020273,2]
[388684034,1759318247467,-1136.69,0.00020273,2]
[388684036,1759318247476,-979.48,0.00020273,2]
[388684038,1759318247485,-1206.08,0.00020273,2]
[388684040,1759318247495,-946.44,0.00020273,2]
[388684042,1759318247504,-1246.19,0.00020273,2]
[388684044,1759318247513,-500.0,0.00020273,2]
[388684046,1759318247524,-1268.62,0.00020273,2]
[388684048,1759318247533,-1471.99,0.00020273,2]
[388684050,1759318247543,-562.71,0.00020273,2]
[388684052,1759318247553,-801.69,0.00020273,2]
[388684054,1759318247566,-968.16,0.00020273,2]
[388684056,1759318247576,-744.98,0.00020273,2]
[388684058,1759318247585,-685.27,0.00020273,2]
[388684060,1759318247595,-400.67256075,0.00020273,2]
[388684062,1759318247604,-500.0,0.00020273,2]
[388684064,1759318247615,-2109.0,0.00020273,2]
[388684066,1759318247624,-500.0,0.00020273,2]
[388684068,1759318247634,-500.0,0.00020273,2]
[388684070,1759318247643,-500.0,0.00020273,2]
[388684072,1759318247652,-1856.68,0.00020273,2]
[388684074,1759318247661,-1093.54,0.00020273,2]
[388684076,1759318247670,-500.0,0.00020273,2]
[388684078,1759318247680,-500.0,0.00020273,2]
[388684080,1759318247689,-828.91,0.00020273,2]
[388684082,1759318247697,-1144.25,0.00020273,2]
[388684084,1759318247707,-500.0,0.00020273,2]
[388684086,1759318247716,-1087.57,0.00020273,2]
[388684088,1759318247725,-848.05,0.00020273,2]
[388684090,1759318247734,-500.0,0.00020273,2]
[388684092,1759318247743,-1113.87,0.00020273,2]
[388684094,1759318247753,-599.23,0.00020273,2]
[388684095,1759318247766,-500.0,0.00020273,2]
[388684097,1759318247775,-1117.57,0.00020273,2]
[388684099,1759318247785,-500.0,0.00020273,2]
[388684101,1759318247795,-525.44,0.00020273,2]
[388684103,1759318247805,-1240.3,0.00020273,2]
[388684105,1759318247814,-2228.95,0.00020273,2]
[388684107,1759318247824,-500.0,0.00020273,2]
[388684109,1759318247833,-500.0,0.00020273,2]
[388684112,1759318247844,-698.229858,0.00020273,2]
[388684114,1759318247854,-698.229858,0.00020273,2]
[388684115,1759318247863,-809.47,0.00020273,2]
[388684117,1759318247872,-698.229858,0.00020273,2]
[388684119,1759318247881,-916.97,0.00020273,2]
[388684121,1759318247891,-698.229858,0.00020273,2]
[388684123,1759318247900,-500.0,0.00020273,2]
[388684125,1759318247909,-151.0,0.00020273,2]
[388684127,1759318247919,-3019.53,0.00020273,2]
[388684129,1759318247928,-500.0,0.00020273,2]
[388684131,1759318247937,-1262.45,0.00020273,2]
[388684133,1759318247950,-706.38,0.00020273,2]
[388684135,1759318247960,-500.0,0.00020273,2]
[388684137,1759318247969,-515.78,0.00020273,2]
[388684139,1759318247978,-559.18,0.00020273,2]
[388684141,1759318247989,-773.55,0.00020273,2]
[388684143,1759318247998,-1651.83,0.00020273,2]
[388684145,1759318248008,-4514.82,0.00020273,2]
[388684147,1759318248018,-511.87,0.00020273,2]
[388684149,1759318248027,-983.43,0.00020273,2]
[388684151,1759318248037,-1490.55,0.00020273,2]
[388684153,1759318248047,-602.8,0.00020273,2]
[388684155,1759318248056,-1294.55,0.00020273,2]
[388684157,1759318248066,-723.5,0.00020273,2]
[388684159,1759318248076,-1566.64,0.00020273,2]
[388684161,1759318248085,-1572.27,0.00020273,2]
[388684163,1759318248094,-1420.96,0.00020273,2]
[388684165,1759318248103,-1058.94,0.00020273,2]
[388684168,1759318248114,-2258.76,0.00020273,2]
[388684170,1759318248123,-151.0,0.00020273,2]
[388684171,1759318248132,-500.0,0.00020273,2]
[388684173,1759318248142,-2521.59,0.00020273,2]
[388684175,1759318248152,-2326.44,0.00020273,2]
[388684178,1759318248163,-8599.99,0.000203,2]
[388684180,1759318248173,-151.0,0.00020325,2]
[388684182,1759318248185,-180.085758,0.00020375,7]
[388684184,1759318248194,-210.00958374,0.00020379,2]
[388684186,1759318248204,-180.085758,0.0002043,4]
[388684188,1759318248214,-2924.0,0.00020433,2]
[388684190,1759318248223,-167.54304195,0.00020468,2]
[388684192,1759318248233,-1000.0,0.00020521,2]
[388684194,1759318248242,-1000.0,0.00020521,2]
[388684196,1759318248252,-410.98424207,0.00020521,2]
[388684198,1759318248261,-1000.0,0.00020521,2]
[388684200,1759318248270,-1139.71961339,0.00020521,2]
[388684202,1759318248280,-1000.0,0.00020521,2]
[388684204,1759318248290,-1000.0,0.00020521,2]
[388684206,1759318248299,-501.68996385,0.00020521,2]
[388684208,1759318248309,-1000.0,0.00020521,2]
[388684210,1759318248318,-240.64680277,0.00020521,2]
[388684212,1759318248328,-676.36,0.00020547,2]
[388684214,1759318248338,-500.0,0.00020547,2]
[388684216,1759318248348,-151.0,0.00020547,2]
[388684218,1759318248357,-500.0,0.00020547,2]
[388684220,1759318248367,-500.0,0.00020547,2]
[388684222,1759318248376,-500.0,0.00020547,2]
[388684224,1759318248385,-614.61602649,0.00020547,2]
[388684226,1759318248394,-500.0,0.00020547,2]
[388684228,1759318248404,-500.0,0.00020547,2]
[388684230,1759318248415,-500.0,0.00020547,2]
[388684232,1759318248425,-500.0,0.00020547,2]
[388684234,1759318248434,-500.0,0.00020547,2]
[388684236,1759318248444,-500.0,0.00020547,2]
[388684238,1759318248454,-551.88158982,0.00020547,2]
[388684240,1759318248465,-500.0,0.00020547,2]
[388684242,1759318248475,-704.23,0.00020547,2]
[388684244,1759318248485,-500.0,0.00020547,2]
[388684246,1759318248495,-500.0,0.00020547,2]
[388684248,1759318248505,-645.44,0.00020547,2]
[388684250,1759318248514,-500.0,0.00020547,2]
[388684252,1759318248524,-500.0,0.00020547,2]
[388684254,1759318248533,-591.33,0.00020547,2]
[388684256,1759318248544,-500.0,0.00020547,2]
[388684259,1759318248554,-500.0,0.00020547,2]
[388684261,1759318248564,-672.16,0.00020547,2]
[388684263,1759318248574,-567.39,0.00020547,2]
[388684277,1759318248713,-1669.71,0.00020547,2]
[388684279,1759318248723,-523.59,0.00020547,2]
[388684281,1759318248733,-484.93766633,0.00020547,2]
[388684284,1759318248744,-662.22,0.00020547,2]
[388684286,1759318248754,-500.0,0.00020547,2]
[388684288,1759318248766,-500.0,0.00020547,2]
[388684290,1759318248775,-619.42,0.00020547,2]
[388684292,1759318248784,-915.84803063,0.00020547,2]
[388684315,1759318249117,-500.0,0.00019178,2]
[388684317,1759318249126,-13.00071987,0.00019452,2]
[388684319,1759318249138,-486.99928013,0.00019452,2]
[388684321,1759318249148,-500.0,0.00019726,2]
[388684323,1759318249158,-500.0,0.0002,2]
[388684325,1759318249167,-173.75481561,0.00020273,2]
[388684327,1759318249176,-72.71196937,0.00020547,2]
[388684329,1759318249185,-669.85,0.00020547,2]
[388684331,1759318249195,-614.52,0.00020547,2]
[388684333,1759318249204,-500.0,0.00020547,2]
[388684335,1759318249214,-1684.4,0.00020547,2]
[388684337,1759318249222,-114.8959037,0.00020547,2]
[388684354,1759318249364,-480.0,0.00019178,2]
[388684356,1759318249374,-480.0,0.00019178,2]
[388684358,1759318249383,-865.7840963,0.00020547,2]
[388684360,1759318249393,-500.0,0.00020547,2]
[388684362,1759318249402,-620.33,0.00020547,2]
[388684364,1759318249411,-603.46,0.00020547,2]
[388684366,1759318249420,-801.96,0.00020547,2]
[388684368,1759318249430,-859.92,0.00020547,2]
[388684370,1759318249439,-500.0,0.00020547,2]
[388684372,1759318249448,-2029.25,0.00020547,2]
[388684374,1759318249457,-498.78251896,0.00020547,2]
[388684376,1759318249468,-408.26748104,0.00020547,2]
[388684378,1759318249477,-500.0,0.00020547,2]
[388684380,1759318249487,-1464.95,0.00020547,2]
[388684382,1759318249496,-728.64,0.00020547,2]
[388684384,1759318249505,-973.33,0.00020547,2]
[388684386,1759318249514,-500.0,0.00020547,2]
[388684388,1759318249523,-500.0,0.00020547,2]
[388684390,1759318249532,-526.17,0.00020547,2]
[388684392,1759318249541,-221.98152943,0.00020547,2]
[388684394,1759318249552,-500.0,0.00020547,2]
[388684396,1759318249565,-552.19,0.00020547,2]
[388684399,1759318249577,-695.19,0.00020547,2]
[388684401,1759318249588,-500.0,0.00020547,2]
[388684403,1759318249607,-527.73,0.00020547,2]
[388684404,1759318249618,-3054.62,0.00020547,2]
[388684406,1759318249628,-1313.94,0.00020547,2]
[388684409,1759318249638,-651.89,0.00020547,2]
[388684411,1759318249648,-500.0,0.00020547,2]
[388684413,1759318249660,-500.0,0.00020547,2]
[388684415,1759318249670,-580.86,0.00020547,2]
[388684417,1759318249679,-500.0,0.00020547,2]
[388684419,1759318249689,-500.0,0.00020547,2]
[388684421,1759318249699,-707.51,0.00020547,2]
[388684423,1759318249708,-500.0,0.00020547,2]
[388684425,1759318249718,-500.0,0.00020547,2]
[388684427,1759318249726,-612.1,0.00020547,2]
[388684429,1759318249737,-500.0,0.00020547,2]
[388684431,1759318249745,-500.0,0.00020547,2]
[388684433,1759318249755,-500.0,0.00020547,2]
[388684435,1759318249767,-500.0,0.00020547,2]
[388684437,1759318249777,-7937.12,0.00020547,2]
[388684439,1759318249787,-1388.47,0.00020547,2]
[388684441,1759318249796,-500.0,0.00020547,2]
[388684443,1759318249806,-1282.59,0.00020547,2]
[388684445,1759318249815,-500.0,0.00020547,2]
[388684447,1759318249825,-500.0,0.00020547,2]
[388684449,1759318249835,-2401.16,0.00020547,2]
[388684451,1759318249847,-735.44,0.00020547,2]
[388684453,1759318249856,-528.59,0.00020547,2]
[388684455,1759318249866,-637.19,0.00020547,2]
[388684457,1759318249875,-927.17,0.00020547,2]
[388684459,1759318249884,-613.98,0.00020547,2]
[388684461,1759318249894,-1079.17,0.00020547,2]
[388684463,1759318249902,-1330.71,0.00020547,2]
[388684465,1759318249911,-500.0,0.00020547,2]
[388684467,1759318249920,-981.13,0.00020547,2]
[388684469,1759318249930,-3125.94,0.00020547,2]
[388684471,1759318249939,-1079.99,0.00020547,2]
[388684473,1759318249948,-1202.54,0.00020547,2]
[388684475,1759318249957,-1136.69,0.00020547,2]
[388684477,1759318249966,-979.48,0.00020547,2]
[388684479,1759318249975,-1206.08,0.00020547,2]
[388684481,1759318249984,-946.44,0.00020547,2]
[388684483,1759318249994,-1246.19,0.00020547,2]
[388684485,1759318250003,-500.0,0.00020547,2]
[388684487,1759318250012,-1268.62,0.00020547,2]
[388684489,1759318250021,-1471.99,0.00020547,2]
[388684491,1759318250034,-562.71,0.00020547,2]
[388684493,1759318250043,-801.69,0.00020547,2]
[388684495,1759318250052,-968.16,0.00020547,2]
[388684497,1759318250061,-744.98,0.00020547,2]
[388684499,1759318250070,-685.27,0.00020547,2]
[388684501,1759318250079,-500.0,0.00020547,2]
[388684503,1759318250088,-2109.0,0.00020547,2]
[388684505,1759318250097,-500.0,0.00020547,2]
[388684507,1759318250107,-500.0,0.00020547,2]
[388684509,1759318250116,-236.52197591,0.00020547,2]
[388684511,1759318250125,-1856.68,0.00020547,2]
[388684513,1759318250134,-1093.54,0.00020547,2]
[388684515,1759318250143,-500.0,0.00020547,2]
[388684517,1759318250152,-500.0,0.00020547,2]
[388684519,1759318250162,-828.91,0.00020547,2]
[388684521,1759318250171,-1144.25,0.00020547,2]
[388684523,1759318250180,-500.0,0.00020547,2]
[388684525,1759318250189,-1087.57,0.00020547,2]
[388684527,1759318250198,-848.05,0.00020547,2]
[388684529,1759318250207,-500.0,0.00020547,2]
[388684531,1759318250216,-1113.87,0.00020547,2]
[388684532,1759318250225,-599.23,0.00020547,2]
[388684534,1759318250234,-500.0,0.00020547,2]
[388684536,1759318250243,-1117.57,0.00020547,2]
[388684538,1759318250253,-383.87278743,0.00020547,2]
[388684540,1759318250261,-525.44,0.00020547,2]
[388684542,1759318250271,-1240.3,0.00020547,2]
[388684544,1759318250281,-2228.95,0.00020547,2]
[388684547,1759318250291,-500.0,0.00020547,2]
[388684549,1759318250300,-500.0,0.00020547,2]
[388684551,1759318250309,-698.229858,0.00020547,2]
[388684553,1759318250318,-698.229858,0.00020547,2]
[388684555,1759318250327,-809.47,0.00020547,2]
[388684557,1759318250336,-698.229858,0.00020547,2]
[388684558,1759318250345,-916.97,0.00020547,2]
[388684561,1759318250354,-698.229858,0.00020547,2]
[388684563,1759318250364,-500.0,0.00020547,2]
[388684565,1759318250373,-3019.53,0.00020547,2]
[388684566,1759318250385,-500.0,0.00020547,2]
[388684568,1759318250394,-1262.45,0.00020547,2]
[388684570,1759318250403,-706.38,0.00020547,2]
[388684572,1759318250413,-500.0,0.00020547,2]
[388684574,1759318250422,-515.78,0.00020547,2]
[388684576,1759318250431,-559.18,0.00020547,2]
[388684578,1759318250440,-773.55,0.00020547,2]
[388684580,1759318250449,-1651.83,0.00020547,2]
[388684582,1759318250458,-4514.82,0.00020547,2]
[388684584,1759318250467,-511.87,0.00020547,2]
[388684586,1759318250476,-983.43,0.00020547,2]
[388684588,1759318250486,-1490.55,0.00020547,2]
[388684590,1759318250495,-602.8,0.00020547,2]
[388684592,1759318250504,-1294.55,0.00020547,2]
[388684594,1759318250513,-723.5,0.00020547,2]
[388684596,1759318250522,-1566.64,0.00020547,2]
[388684598,1759318250531,-1572.27,0.00020547,2]
[388684600,1759318250540,-1420.96,0.00020547,2]
[388684602,1759318250549,-1058.94,0.00020547,2]
[388684604,1759318250558,-2258.76,0.00020547,2]
[388684606,1759318250567,-500.0,0.00020547,2]
[388684609,1759318250576,-2521.59,0.00020547,2]
[388684611,1759318250585,-2326.44,0.00020547,2]
[388684613,1759318250595,-151.0,0.00020568,2]
[388684615,1759318250604,-1500.0,0.00020568,2]
[388684617,1759318250614,-1500.0,0.00020568,2]
[388684619,1759318250623,-1500.0,0.00020568,2]
[388684621,1759318250631,-1500.0,0.00020568,2]
[388684623,1759318250640,-1500.0,0.00020568,2]
[388684625,1759318250649,-1500.0,0.00020568,2]
[388684627,1759318250658,-1500.0,0.00020568,2]
[388684629,1759318250667,-1500.0,0.00020568,2]
[388684630,1759318250678,-979.0,0.00020609,2]
[388684633,1759318250687,-410.0,0.00020609,2]
[388684635,1759318250696,-210.00958374,0.00020721,2]
[388684637,1759318250705,-180.085758,0.00020807,7]
[388684639,1759318250714,-676.36,0.00020821,2]
[388684641,1759318250723,-500.0,0.00020821,2]
[388684643,1759318250732,-500.0,0.00020821,2]
[388684645,1759318250741,-377.93798591,0.00020821,2]
[388684647,1759318250750,-500.0,0.00020821,2]
[388684649,1759318250760,-500.0,0.00020821,2]
[388684651,1759318250774,-500.0,0.00020821,2]
[388684653,1759318250783,-500.0,0.00020821,2]
[388684655,1759318250793,-500.0,0.00020821,2]
[388684657,1759318250804,-433.13905993,0.00020821,2]
[388684659,1759318250812,-500.0,0.00020821,2]
[388684661,1759318250821,-500.0,0.00020821,2]
[388684663,1759318250831,-704.23,0.00020821,2]
[388684665,1759318250843,-500.0,0.00020821,2]
[388684667,1759318250852,-500.0,0.00020821,2]
[388684669,1759318250860,-500.0,0.00020821,2]
[388684671,1759318250869,-591.33,0.00020821,2]
[388684673,1759318250878,-500.0,0.00020821,2]
[388684675,1759318250887,-336.071,0.00020821,2]
[388684677,1759318250895,-500.0,0.00020821,2]
[388684679,1759318250904,-672.16,0.00020821,2]
[388684681,1759318250913,-567.39,0.00020821,2]
[388684683,1759318250922,-1669.71,0.00020821,2]
[388684685,1759318250931,-523.59,0.00020821,2]
[388684687,1759318250940,-662.22,0.00020821,2]
[388684689,1759318250949,-580.40753498,0.00020821,2]
[388684691,1759318250959,-500.0,0.00020821,2]
[388684693,1759318250967,-619.42,0.00020821,2]
[388684695,1759318250977,-988.56,0.00020821,2]
[388684696,1759318250986,-669.85,0.00020821,2]
[388684698,1759318250995,-614.52,0.00020821,2]
[388684701,1759318251007,-500.0,0.00020821,2]
[388684702,1759318251017,-1684.4,0.00020821,2]
[388684705,1759318251027,-980.68,0.00020821,2]
[388684707,1759318251037,-500.0,0.00020821,2]
[388684708,1759318251045,-620.33,0.00020821,2]
[388684710,1759318251055,-603.46,0.00020821,2]
[388684712,1759318251064,-801.96,0.00020821,2]
[388684714,1759318251073,-859.92,0.00020821,2]
[388684716,1759318251082,-319.54234189,0.00020821,2]
[388684718,1759318251091,-2029.25,0.00020821,2]
[388684720,1759318251100,-907.05,0.00020821,2]
[388684722,1759318251109,-500.0,0.00020821,2]
[388684724,1759318251118,-1464.95,0.00020821,2]
[388684726,1759318251128,-728.64,0.00020821,2]
[388684729,1759318251137,-973.33,0.00020821,2]
[388684730,1759318251146,-500.0,0.00020821,2]
[388684732,1759318251155,-500.0,0.00020821,2]
[388684734,1759318251164,-526.17,0.00020821,2]
[388684736,1759318251173,-500.0,0.00020821,2]
[388684738,1759318251182,-552.19,0.00020821,2]
[388684740,1759318251191,-220.50352974,0.00020821,2]
[388684743,1759318251205,-474.68647026,0.00020821,2]
[388684745,1759318251214,-500.0,0.00020821,2]
[388684747,1759318251222,-527.73,0.00020821,2]
[388684749,1759318251231,-3054.62,0.00020821,2]
[388684751,1759318251240,-1313.94,0.00020821,2]
[388684753,1759318251249,-651.89,0.00020821,2]
[388684755,1759318251258,-320.22324898,0.00020821,2]
[388684769,1759318251391,-500.0,0.00019178,2]
[388684771,1759318251401,-78.86832844,0.00019178,2]
[388684773,1759318251413,-421.13167156,0.00019178,2]
[388684775,1759318251422,-500.0,0.00019452,2]
[388684777,1759318251431,-428.711,0.00020609,2]
[388684779,1759318251441,-179.77675102,0.00020821,2]
[388684781,1759318251450,-580.86,0.00020821,2]